bitfinex-derivatives/quotes_BTCF0:USTF0_20250117
["timestamp","ask_amount","ask_price","bid_price","bid_amount"]
[1737097907813,0.409986,101670.0,101660.0,0.52908]
[1737097910504,0.409986,101670.0,101660.0,0.53442769]
[1737097914318,0.3608,101670.0,101660.0,0.58361769]
[1737097915616,0.3608,101670.0,101660.0,0.81981047]
[1737097917725,0.3608,101670.0,101660.0,0.81446278]
[1737097918317,0.409986,101670.0,101660.0,0.81446278]
[1737097919023,0.409986,101670.0,101660.0,0.81980627]
[1737097920922,0.409986,101670.0,101660.0,0.82993483]
[1737097921320,0.50318829,101670.0,101660.0,0.82993483]
[1737097921518,0.409986,101670.0,101660.0,0.82993483]
[1737097925022,0.59639058,101670.0,101640.0,0.3546151]
[1737097925216,0.86399729,101650.0,101640.0,0.3546151]
[1737097925415,0.770795,101650.0,101640.0,0.3546151]
[1737097926322,0.409995,101650.0,101630.0,0.09320229]
[1737097926512,0.459194,101650.0,101620.0,0.55241429]
[1737097926715,0.049201,101640.0,101620.0,0.51349419]
[1737097927322,0.049201,101640.0,101620.0,0.87767278]
[1737097928332,0.049201,101640.0,101620.0,0.92687878]
[1737097929222,0.049201,101640.0,101630.0,0.14240729]
[1737097929421,0.049201,101640.0,101630.0,0.049205]
[1737097932124,0.45239829,101650.0,101630.0,0.049205]
[1737097932823,0.049201,101640.0,101630.0,0.049205]
[1737097933028,0.410001,101640.0,101630.0,0.049205]
[1737097935517,0.410001,101640.0,101620.0,0.3710859]
[1737097935724,0.049205,101630.0,101620.0,0.3710859]
[1737097936622,0.049205,101630.0,101620.0,0.0102859]
[1737097936828,0.049205,101630.0,101610.0,1.48333139]
[1737097937017,0.410005,101630.0,101610.0,1.12789519]
[1737097937219,0.410005,101630.0,101610.0,0.72406609]
[1737097937220,0.04921,101620.0,101610.0,0.72406609]
[1737097937425,0.45400229,101630.0,101610.0,0.77328109]
[1737097937426,0.3608,101630.0,101610.0,0.77328109]
[1737097937622,0.410007,101630.0,101610.0,0.77328109]
[1737097937929,0.410007,101630.0,101610.0,0.78316998]
[1737097938430,0.410007,101630.0,101610.0,1.14396998]
[1737097938431,0.049207,101630.0,101610.0,1.14396998]
[1737097938731,0.410007,101630.0,101610.0,1.14396998]
[1737097940414,0.459216,101630.0,101610.0,1.14396998]
[1737097940620,0.410007,101630.0,101610.0,1.14396998]
[1737097940816,0.410007,101630.0,101610.0,1.14396634]
[1737097941014,0.459216,101630.0,101610.0,1.14396634]
[1737097941428,0.459216,101630.0,101610.0,0.61496634]
[1737097941622,0.459216,101630.0,101610.0,0.52176405]
[1737097942129,0.410007,101630.0,101610.0,0.52176405]
[1737097942930,0.04921,101620.0,101610.0,0.52176388]
[1737097945827,0.04921,101620.0,101610.0,0.48926388]
[1737097946828,0.14241229,101620.0,101610.0,0.01524888]
[1737097947135,0.20481229,101620.0,101610.0,0.01524888]
[1737097947327,0.23511229,101620.0,101610.0,0.01524888]
[1737097947831,0.59591229,101620.0,101610.0,0.01524888]
[1737097951818,0.59591229,101620.0,101610.0,0.01525827]
[1737097955233,0.59591229,101620.0,101610.0,0.01525809]
[1737097957336,0.59591229,101620.0,101610.0,0.01525863]
[1737097959537,0.59591229,101620.0,101610.0,0.01526036]
[1737097961440,0.50271,101620.0,101610.0,0.01526036]
[1737097961834,0.47241,101620.0,101610.0,0.15767765]
[1737097962034,0.47241,101620.0,101610.0,0.06447536]
[1737097963542,0.47241,101620.0,101610.0,0.06448197]
[1737097964036,0.11161,101620.0,101610.0,0.06448197]
[1737097964430,0.47241,101620.0,101610.0,0.06448197]
[1737097965433,0.47241,101620.0,101610.0,0.06448303]
[1737097966839,0.47241,101620.0,101610.0,0.01526803]
[1737097967541,0.47241,101620.0,101610.0,0.01527316]
[1737097968426,0.47241,101620.0,101610.0,0.10847545]
[1737097968644,0.410007,101630.0,101610.0,0.51849045]
[1737097968940,0.441907,101630.0,101610.0,0.15769045]
[1737097969538,0.53510929,101630.0,101610.0,0.18859579]
[1737097971328,0.441907,101630.0,101610.0,0.18859579]
[1737097971540,0.441907,101630.0,101610.0,0.21979579]
[1737097972443,0.441907,101630.0,101610.0,0.58059579]
[1737097972634,0.491116,101630.0,101610.0,0.25169579]
[1737097973845,0.441907,101630.0,101610.0,0.25169579]
[1737097974951,0.491116,101630.0,101610.0,0.25169579]
[1737097975138,0.441907,101630.0,101610.0,0.25169579]
[1737097975339,0.491116,101630.0,101610.0,0.25169579]
[1737097976037,0.04921,101620.0,101610.0,0.25169579]
[1737097976243,0.14241229,101620.0,101610.0,0.0152785]
[1737097976450,0.20601229,101620.0,101610.0,0.0152785]
[1737097977348,0.56681229,101620.0,101610.0,0.0152785]
[1737097977946,0.56681229,101620.0,101610.0,0.01528051]
[1737097981238,0.56681229,101620.0,101610.0,0.00988889]
[1737097981444,0.56681229,101620.0,101610.0,0.00537783]
[1737097983052,0.049215,101610.0,101600.0,1.19507583]
[1737097983252,0.17501729,101610.0,101600.0,1.2004527]
[1737097983443,0.17501729,101610.0,101600.0,1.5550678]
[1737097983637,0.17501729,101610.0,101600.0,1.1942678]
[1737097983841,0.17501729,101610.0,101600.0,0.6637117]
[1737097983842,0.62901958,101610.0,101600.0,0.6637117]
[1737097984054,0.62901958,101610.0,101600.0,0.49926782]
[1737097984254,0.62901958,101610.0,101600.0,0.34956782]
[1737097985049,0.62901958,101610.0,101570.0,0.672572]
[1737097985251,0.50323129,101590.0,101570.0,0.67794249]
[1737097985443,0.50323129,101590.0,101570.0,0.69333353]
[1737097985645,0.049229,101580.0,101570.0,0.68796304]
[1737097985851,0.049229,101580.0,101570.0,0.70325647]
[1737097986148,0.049229,101580.0,101570.0,0.93913712]
[1737097987350,0.049229,101580.0,101570.0,0.87996098]
[1737097989453,0.049229,101580.0,101570.0,0.97316327]
[1737097990856,0.049229,101580.0,101570.0,0.96777559]
[1737097994258,0.049229,101580.0,101570.0,0.69786879]
[1737097994665,0.049229,101580.0,101570.0,0.69786879]
[1737097996759,0.049229,101580.0,101570.0,0.79107108]
[1737097996964,0.53632829,101590.0,101570.0,0.79107108]
[1737097997158,0.410026,101590.0,101570.0,0.79107108]
[1737098001064,0.410026,101590.0,101570.0,1.15187108]
[1737098001365,0.410026,101590.0,101580.0,0.14243129]
[1737098001564,0.410026,101590.0,101580.0,0.049229]
[1737098002572,0.410026,101590.0,101580.0,0.04917708]
[1737098003763,0.441721,101600.0,101580.0,0.50317937]
[1737098005764,0.53492329,101600.0,101580.0,0.40997708]
[1737098006162,0.049224,101590.0,101580.0,0.40997708]
[1737098006364,0.14242629,101590.0,101580.0,0.40997708]
[1737098006664,0.14242629,101590.0,101580.0,0.04917708]
[1737098006877,0.50322629,101590.0,101580.0,0.04917708]
[1737098007761,0.410024,101590.0,101580.0,0.04917708]
[1737098009655,0.049224,101590.0,101580.0,0.04917708]
[1737098010370,0.049224,101590.0,101580.0,0.22588159]
[1737098011264,0.410024,101590.0,101580.0,0.17670451]
[1737098011470,0.47111534,101590.0,101580.0,0.17670451]
[1737098012369,0.11031534,101590.0,101580.0,0.18210769]
[1737098012562,0.47111534,101590.0,101580.0,0.17670451]
[1737098013367,0.47111534,101590.0,101580.0,0.18211381]
[1737098013967,0.47111534,101590.0,101580.0,0.41799369]
[1737098015170,0.47111534,101590.0,101580.0,0.18211304]
[1737098018073,0.410024,101590.0,101580.0,0.24320652]
[1737098018262,0.45359134,101600.0,101580.0,0.52831617]
[1737098018263,0.65904573,101600.0,101580.0,0.52831617]
[1737098018464,0.64717439,101600.0,101580.0,0.52831617]
[1737098018668,0.70826573,101600.0,101580.0,0.52831563]
[1737098019274,0.50281134,101600.0,101590.0,0.17670451]
[1737098019465,0.14201134,101600.0,101590.0,0.17670451]
[1737098020069,0.04922,101600.0,101590.0,0.29242469]
[1737098020274,0.04922,101600.0,101590.0,0.35402457]
[1737098020474,0.04922,101600.0,101590.0,0.38712457]
[1737098021080,0.11031134,101600.0,101590.0,0.38712457]
[1737098021272,0.04922,101600.0,101590.0,0.38712457]
[1737098021881,0.04922,101600.0,101590.0,0.62300522]
[1737098022281,0.04922,101600.0,101590.0,0.6229978]
[1737098022983,0.41149386,101610.0,101590.0,0.9837978]
[1737098023184,0.41149386,101610.0,101600.0,0.11031034]
[1737098023371,0.4725852,101610.0,101600.0,0.11031034]
[1737098023575,0.41149386,101610.0,101600.0,0.11031034]
[1737098023776,0.41149386,101610.0,101600.0,0.28701485]
[1737098023973,0.36227686,101610.0,101600.0,0.35349721]
[1737098024177,0.36227686,101610.0,101600.0,0.29240587]
[1737098024374,0.4233682,101610.0,101600.0,0.28701485]
[1737098025083,0.4233682,101610.0,101600.0,0.5228955]
[1737098026383,0.4233682,101610.0,101600.0,0.28701485]
[1737098026685,0.36227686,101610.0,101600.0,0.28701485]
[1737098027878,0.00147686,101610.0,101600.0,0.28701485]
[1737098028077,0.0625682,101610.0,101600.0,0.28701485]
[1737098029689,0.00147686,101610.0,101600.0,0.28701485]
[1737098033290,0.00147686,101610.0,101600.0,0.29238852]
[1737098034189,0.00147686,101610.0,101600.0,0.28701485]
[1737098034488,0.00147686,101610.0,101600.0,0.65318789]
[1737098034690,0.00147686,101610.0,101600.0,0.71427916]
[1737098034897,0.45379134,101630.0,101600.0,0.71427916]
[1737098035194,0.50299734,101630.0,101610.0,0.20500234]
[1737098035576,0.47109734,101630.0,101620.0,0.06109134]
[1737098036181,0.47109734,101630.0,101610.0,0.20500234]
[1737098037388,0.06109134,101620.0,101610.0,0.56580234]
[1737098037596,0.06109134,101620.0,101610.0,0.143911]
[1737098038192,0.17139268,101620.0,101610.0,0.082011]
[1737098038379,0.17139268,101620.0,101610.0,0.049211]
[1737098038787,0.47110134,101620.0,101610.0,0.049211]
[1737098038997,0.53219268,101620.0,101610.0,0.049211]
[1737098039290,0.41001,101620.0,101610.0,0.049211]
[1737098039491,0.50305104,101620.0,101610.0,0.049211]
[1737098043095,0.442006,101630.0,101610.0,0.14225204]
[1737098043297,0.50304704,101630.0,101610.0,0.21093133]
[1737098043795,0.50304704,101630.0,101610.0,0.12812395]
[1737098044395,0.50304704,101630.0,101610.0,0.30482846]
[1737098045391,0.50304704,101630.0,101610.0,0.30483563]
[1737098045595,0.50304704,101630.0,101610.0,0.29944917]
[1737098045989,0.50304704,101630.0,101610.0,0.30484062]
[1737098048801,0.50304704,101630.0,101610.0,0.44709266]
[1737098049300,0.50304704,101630.0,101620.0,0.04921]
[1737098051800,0.14224704,101630.0,101620.0,0.04921]
[1737098051994,0.410006,101630.0,101620.0,0.04921]
[1737098052601,0.049206,101630.0,101620.0,0.04921]
[1737098054700,0.410006,101630.0,101620.0,0.04921]
[1737098055201,0.049206,101630.0,101620.0,0.04921]
[1737098057201,0.049206,101630.0,101620.0,0.08231]
[1737098057504,0.049206,101630.0,101620.0,0.35746573]
[1737098057999,0.049206,101630.0,101620.0,0.71826573]
[1737098058198,0.75359543,101640.0,101630.0,0.049205]
[1737098058199,0.67965539,101640.0,101630.0,0.049205]
[1737098058497,0.474201,101640.0,101630.0,0.049205]
[1737098059095,0.410001,101640.0,101630.0,0.049205]
[1737098059295,0.410001,101640.0,101630.0,0.17252834]
[1737098059501,0.47102434,101640.0,101630.0,0.17252834]
[1737098059900,0.47102434,101640.0,101630.0,0.111505]
[1737098060402,0.11022434,101640.0,101630.0,0.17252834]
[1737098060995,0.56625439,101650.0,101640.0,0.0492]
[1737098061203,0.56625439,101650.0,101640.0,0.14052334]
[1737098062104,0.20545439,101650.0,101640.0,0.20154668]
[1737098062496,0.20545439,101650.0,101640.0,0.14052334]
[1737098062695,0.59973873,101660.0,101640.0,0.31722785]
[1737098063195,0.06102334,101650.0,101640.0,0.31722785]
[1737098063397,0.6316874,101660.0,101640.0,0.25620451]
[1737098064289,0.6316874,101660.0,101640.0,0.34917652]
[1737098065396,0.6316874,101660.0,101640.0,0.17247201]
[1737098066397,0.6316874,101660.0,101640.0,0.0795]
[1737098066793,0.53871539,101660.0,101640.0,0.17247201]
[1737098067102,0.53871539,101660.0,101640.0,0.33607201]
[1737098068005,0.53871539,101660.0,101640.0,0.3458835]
[1737098071114,0.53871539,101660.0,101640.0,0.1822835]
[1737098073512,0.53871539,101660.0,101650.0,0.09297201]
[1737098073909,0.17791539,101660.0,101650.0,0.09297201]
[1737098074304,0.17791539,101660.0,101650.0,0.14216701]
[1737098074704,0.503287,101670.0,101650.0,0.20376701]
[1737098074901,0.503287,101670.0,101660.0,0.09297201]
[1737098075106,0.503287,101670.0,101660.0,0.14216201]
[1737098075807,0.471887,101670.0,101660.0,0.14216201]
[1737098076910,0.471887,101670.0,101660.0,0.074162]
[1737098077609,0.409987,101670.0,101660.0,0.074162]
[1737098077810,0.409987,101670.0,101660.0,0.106262]
[1737098079317,0.409987,101670.0,101660.0,0.08129]
[1737098081807,0.409987,101670.0,101660.0,0.01328999]
[1737098082005,0.409987,101670.0,101660.0,0.02309118]
[1737098082616,0.409987,101670.0,101660.0,0.07228118]
[1737098083412,0.409987,101670.0,101660.0,0.13326969]
[1737098085924,0.409987,101670.0,101660.0,0.1199797]
[1737098086919,0.409987,101670.0,101660.0,0.06098851]
[1737098087219,0.440087,101670.0,101660.0,0.06098851]
[1737098087414,0.440087,101670.0,101660.0,0.06640177]
[1737098088415,0.440087,101670.0,101660.0,0.24310628]
[1737098088620,0.440087,101670.0,101660.0,0.29229628]
[1737098091816,0.440087,101670.0,101660.0,0.2852945]
[1737098092922,0.440087,101670.0,101660.0,0.27987152]
[1737098093818,0.440087,101670.0,101660.0,0.11017851]
[1737098097923,0.440087,101670.0,101650.0,0.32822232]
[1737098097924,0.04919,101660.0,101650.0,0.37040382]
[1737098098319,0.53196702,101660.0,101650.0,0.24563114]
[1737098098721,0.47097851,101660.0,101650.0,0.24563114]
[1737098098921,0.04919,101660.0,101650.0,0.31205141]
[1737098099225,0.04919,101660.0,101650.0,0.12536576]
[1737098099826,0.502887,101670.0,101650.0,0.12536576]
[1737098100027,0.502887,101670.0,101660.0,0.06098851]
[1737098101533,0.502887,101670.0,101660.0,0.11017851]
[1737098101534,0.409987,101670.0,101660.0,0.11017851]
[1737098101924,0.441787,101670.0,101660.0,0.10316701]
[1737098104334,0.441787,101670.0,101660.0,0.10859575]
[1737098104720,0.441787,101670.0,101660.0,0.10859502]
[1737098105641,0.80115163,101680.0,101660.0,0.18188592]
[1737098105931,0.44035163,101680.0,101670.0,0.53196302]
[1737098106227,0.62995439,101690.0,101680.0,0.049181]
[1737098106436,0.62995439,101690.0,101680.0,0.18888842]
[1737098106732,0.56625439,101690.0,101680.0,0.18888615]
[1737098107318,0.3608,101690.0,101680.0,0.18888615]
[1737098107529,0.51144868,101700.0,101680.0,0.18888615]
[1737098107723,0.51144868,101700.0,101690.0,0.06098851]
[1737098108133,0.57243719,101700.0,101690.0,0.06098851]
[1737098108335,0.51144868,101700.0,101690.0,0.11016451]
[1737098108530,0.57243719,101700.0,101690.0,0.11016451]
[1737098111437,0.51144868,101700.0,101690.0,0.11016451]
[1737098112033,0.51144868,101700.0,101690.0,0.10315301]
[1737098112440,0.57243719,101700.0,101690.0,0.10315301]
[1737098112741,0.51144868,101700.0,101690.0,0.10315301]
[1737098113239,0.57243719,101700.0,101690.0,0.10315301]
[1737098113432,0.51144868,101700.0,101690.0,0.10315301]
[1737098116932,0.51144868,101700.0,101690.0,0.035153]
[1737098117640,0.51144868,101700.0,101690.0,0.084329]
[1737098117841,0.51144868,101700.0,101690.0,0.613209]
[1737098125348,0.57243719,101700.0,101690.0,0.613209]
[1737098125839,0.51144868,101700.0,101690.0,0.613209]
[1737098126046,0.21163719,101700.0,101690.0,0.613209]
[1737098126246,0.15064868,101700.0,101690.0,0.578056]
[1737098126434,0.15064868,101700.0,101690.0,0.63904451]
[1737098133349,0.15064868,101700.0,101690.0,0.65134237]
[1737098134253,0.15064868,101700.0,101690.0,0.65672744]
[1737098136053,0.15064868,101700.0,101690.0,1.01752744]
[1737098136754,0.15064868,101700.0,101690.0,1.25340809]
[1737098136950,0.15064868,101700.0,101690.0,1.25340813]
[1737098137454,0.15064868,101700.0,101690.0,1.28480813]
[1737098137856,0.10147568,101700.0,101690.0,1.28480813]
[1737098138054,0.10147568,101700.0,101690.0,1.40779664]
[1737098138266,1e-08,101710.0,101700.0,0.049171]
[1737098138555,1e-08,101710.0,101700.0,0.18883099]
[1737098138754,0.441664,101720.0,101700.0,0.18883099]
[1737098138755,0.67656125,101720.0,101700.0,0.18883099]
[1737098138964,0.67656125,101720.0,101710.0,0.06098851]
[1737098139451,0.67656125,101720.0,101710.0,0.11015451]
[1737098140150,0.441664,101720.0,101710.0,0.11015451]
[1737098140751,0.441664,101720.0,101710.0,0.12245132]
[1737098141356,0.080864,101720.0,101710.0,0.12245132]
[1737098141660,0.080864,101720.0,101710.0,0.12782423]
[1737098141861,0.080864,101720.0,101710.0,0.12081273]
[1737098142255,0.51680015,101730.0,101710.0,0.16997473]
[1737098142256,0.50496964,101730.0,101710.0,0.16997473]
[1737098142459,0.56595815,101730.0,101710.0,0.16997473]
[1737098143748,0.56595815,101730.0,101720.0,0.049161]
[1737098147064,0.06098851,101720.0,101710.0,0.0421495]
[1737098147367,0.42178851,101720.0,101710.0,0.0913155]
[1737098147853,0.42178851,101720.0,101710.0,0.05887283]
[1737098148561,0.42178851,101720.0,101710.0,0.11986134]
[1737098148759,0.47094951,101720.0,101710.0,0.05887283]
[1737098149866,0.47094951,101720.0,101710.0,0.11986134]
[1737098150067,0.409961,101720.0,101710.0,0.11986134]
[1737098150269,0.47094951,101720.0,101710.0,0.11986134]
[1737098151462,0.47094951,101720.0,101710.0,0.11979806]
[1737098151665,0.47094951,101720.0,101710.0,0.05880955]
[1737098151860,0.47094951,101720.0,101710.0,0.11979806]
[1737098152473,0.47094951,101720.0,101710.0,0.05880955]
[1737098154873,0.53193802,101720.0,101710.0,0.00970683]
[1737098155070,0.51537702,101720.0,101700.0,0.28505065]
[1737098155265,0.17185451,101710.0,101700.0,0.28505065]
[1737098155873,0.17185451,101710.0,101700.0,0.04917]
[1737098156377,0.17185451,101710.0,101700.0,0.06691677]
[1737098156671,0.17185451,101710.0,101700.0,0.07705605]
[1737098157072,0.17185451,101710.0,101700.0,0.13804456]
[1737098157868,0.17185451,101710.0,101700.0,0.08887456]
[1737098159070,0.17185451,101710.0,101700.0,0.02788774]
[1737098160176,0.53265451,101710.0,101700.0,0.01559063]
[1737098160369,0.049171,101700.0,101690.0,1.05962971]
[1737098160570,0.56244802,101700.0,101690.0,1.05962971]
[1737098160977,0.56244802,101700.0,101690.0,1.06953014]
[1737098161276,0.56244802,101700.0,101690.0,0.52888]
[1737098161473,0.049176,101690.0,101680.0,0.23588065]
[1737098161675,0.53336451,101690.0,101680.0,0.2536469]
[1737098162070,0.53336451,101690.0,101680.0,0.23588065]
[1737098162373,0.48418851,101690.0,101670.0,0.44375516]
[1737098162580,0.11016951,101680.0,101670.0,0.46149712]
[1737098162879,0.049181,101680.0,101670.0,0.46149712]
[1737098164084,0.049181,101680.0,101670.0,0.47118082]
[1737098165182,0.11016951,101680.0,101670.0,0.26330631]
[1737098165372,0.17115802,101680.0,101670.0,0.26330631]
[1737098165573,0.11016951,101680.0,101670.0,0.26330631]
[1737098165770,0.14116951,101680.0,101670.0,0.26330631]
[1737098165981,0.56295802,101680.0,101670.0,0.26330631]
[1737098166178,0.56295802,101680.0,101670.0,0.24556435]
[1737098166684,0.56295802,101680.0,101670.0,0.0250608]
[1737098167784,0.50196951,101680.0,101670.0,0.08604931]
[1737098168187,0.440981,101680.0,101670.0,0.08604931]
[1737098168489,0.409981,101680.0,101670.0,0.13523531]
[1737098168785,0.409981,101680.0,101670.0,0.11985821]
[1737098169381,0.50290669,101680.0,101670.0,0.0096837]
[1737098169576,0.53350669,101680.0,101660.0,0.53019532]
[1737098169778,0.20491169,101670.0,101660.0,0.53019532]
[1737098169993,0.472786,101670.0,101660.0,0.53019532]
[1737098170283,0.111986,101670.0,101660.0,0.62312101]
[1737098170487,0.409981,101680.0,101660.0,1.04848831]
[1737098170684,0.049181,101680.0,101670.0,0.14211169]
[1737098171683,0.049181,101680.0,101660.0,1.04310408]
[1737098171684,0.049184,101680.0,101660.0,1.04310408]
[1737098171890,0.049184,101680.0,101670.0,0.09292569]
[1737098172184,0.049184,101680.0,101660.0,1.04310408]
[1737098172387,0.049184,101680.0,101660.0,1.06082602]
[1737098174287,0.049184,101680.0,101660.0,1.06082984]
[1737098174878,0.049184,101680.0,101660.0,1.05935452]
[1737098176285,0.049184,101680.0,101660.0,0.96642973]
[1737098176479,0.049184,101680.0,101660.0,1.05935542]
[1737098177390,0.049184,101680.0,101670.0,0.09292569]
[1737098177588,0.472777,101690.0,101670.0,0.32893738]
[1737098177778,0.440477,101690.0,101680.0,0.09292569]
[1737098178094,0.049177,101690.0,101680.0,0.09292569]
[1737098180092,0.049177,101690.0,101680.0,0.14210669]
[1737098180297,0.409973,101700.0,101680.0,0.50290669]
[1737098180487,0.409973,101700.0,101690.0,0.09292569]
[1737098181692,0.049173,101700.0,101690.0,0.50290169]
[1737098181897,0.049173,101700.0,101690.0,0.59680169]
[1737098183697,0.409973,101700.0,101680.0,0.64586065]
[1737098183902,0.049176,101690.0,101680.0,0.66358388]
[1737098184394,0.049176,101690.0,101680.0,0.70732957]
[1737098184792,0.049176,101690.0,101680.0,0.47144892]
[1737098184993,0.049176,101690.0,101680.0,0.11064892]
[1737098186093,0.049176,101690.0,101680.0,0.15982992]
[1737098188103,0.049176,101690.0,101680.0,0.16964319]
[1737098188605,0.049176,101690.0,101680.0,0.40552384]
[1737098189402,0.409973,101700.0,101690.0,0.049176]
[1737098189705,0.049173,101700.0,101690.0,0.14210169]
[1737098189919,0.049173,101700.0,101690.0,0.23680169]
[1737098190904,0.049173,101700.0,101690.0,0.24228525]
[1737098191116,0.049173,101700.0,101690.0,0.24228647]
[1737098191411,0.049173,101700.0,101690.0,0.14936078]
[1737098191606,0.475466,101710.0,101690.0,0.24228647]
[1737098192712,0.475466,101710.0,101690.0,0.25458305]
[1737098192911,0.475466,101710.0,101690.0,0.25458248]
[1737098193605,0.049166,101710.0,101700.0,0.14209669]
[1737098194011,0.049166,101710.0,101700.0,0.15985884]
[1737098195115,0.049166,101710.0,101700.0,0.14209669]
[1737098195417,0.049166,101710.0,101700.0,0.15984647]
[1737098195806,0.049166,101710.0,101700.0,0.14754973]
[1737098196006,0.409962,101720.0,101710.0,0.049166]
[1737098196207,0.409962,101720.0,101710.0,0.14209169]
[1737098197405,0.409962,101720.0,101710.0,0.049166]
[1737098197610,0.049166,101710.0,101700.0,0.40997]
[1737098198014,0.049166,101710.0,101700.0,0.93877]
[1737098198421,0.049166,101710.0,101700.0,0.5288]
[1737098198610,0.50289169,101710.0,101700.0,0.5288]
[1737098199019,0.50289169,101710.0,101700.0,0.53874006]
[1737098199314,0.409966,101710.0,101700.0,0.53874006]
[1737098199515,0.409966,101710.0,101700.0,0.63166575]
[1737098199719,0.049166,101710.0,101700.0,0.68083675]
[1737098199911,0.505063,101720.0,101700.0,0.68083675]
[1737098200519,0.505063,101720.0,101710.0,0.14209169]
[1737098200724,0.471763,101720.0,101710.0,0.14209169]
[1737098202212,0.409963,101720.0,101710.0,0.14209169]
[1737098202417,0.409963,101720.0,101710.0,0.23609169]
[1737098208719,0.3608,101720.0,101710.0,0.23609169]
[1737098208915,0.409958,101730.0,101720.0,0.049161]
[1737098209114,0.409958,101730.0,101720.0,0.14208669]
[1737098209515,0.049158,101730.0,101720.0,0.14208669]
[1737098211628,0.049158,101730.0,101720.0,0.37796734]
[1737098212621,0.049158,101730.0,101720.0,0.6728364]
[1737098213528,0.049158,101730.0,101720.0,0.37796734]
[1737098214518,0.3941,101740.0,101720.0,0.37796734]
[1737098214723,0.443253,101740.0,101730.0,0.09292569]
[1737098216025,0.443253,101740.0,101730.0,0.26852668]
[1737098216623,0.443253,101740.0,101730.0,0.31768368]
[1737098218130,0.443253,101740.0,101730.0,0.24968367]
[1737098218632,0.049153,101740.0,101730.0,0.24968367]
[1737098219728,0.049153,101740.0,101730.0,0.48556432]
[1737098220223,0.409953,101740.0,101730.0,0.48556432]
[1737098220423,0.50287869,101740.0,101730.0,0.41148164]
[1737098220624,0.53357869,101740.0,101730.0,0.41148164]
[1737098221023,0.50287869,101740.0,101730.0,0.41148164]
[1737098221328,0.409953,101740.0,101730.0,0.32880634]
[1737098222828,0.50287869,101740.0,101730.0,0.23588065]
[1737098223436,0.50287869,101740.0,101730.0,0.41152293]
[1737098224630,0.50287869,101740.0,101730.0,0.17564228]
[1737098225027,0.89580438,101740.0,101730.0,0.03164228]
[1737098225228,0.89580438,101740.0,101720.0,0.48084971]
[1737098225229,0.049157,101730.0,101720.0,0.48084971]
[1737098225535,0.59580838,101730.0,101720.0,0.48084971]
[1737098226426,0.049166,101710.0,101700.0,0.29486906]
[1737098226626,0.409966,101710.0,101700.0,0.29486906]
[1737098227728,0.409966,101710.0,101690.0,1.08443001]
[1737098227929,0.049171,101700.0,101690.0,1.1021282]
[1737098228834,0.049171,101700.0,101690.0,1.47361286]
[1737098229334,0.409966,101710.0,101690.0,1.47361286]
[1737098229528,0.049171,101700.0,101690.0,1.47361286]
[1737098229930,0.3608,101710.0,101690.0,1.47361286]
[1737098230137,0.409968,101710.0,101700.0,0.09292569]
[1737098232536,0.409968,101710.0,101690.0,1.04534788]
[1737098232843,0.409968,101710.0,101700.0,0.049171]
[1737098234040,0.049168,101710.0,101700.0,0.049171]
[1737098234243,0.049168,101710.0,101700.0,0.06686243]
[1737098236846,0.409968,101710.0,101700.0,0.01229691]
[1737098237346,0.50289369,101710.0,101700.0,0.01229691]
[1737098238045,0.14209369,101710.0,101700.0,0.01229711]
[1737098239041,0.50289369,101710.0,101700.0,0.01229711]
[1737098239241,0.049171,101700.0,101690.0,1.16489719]
[1737098239445,0.049171,101700.0,101690.0,1.18258226]
[1737098239946,0.049171,101700.0,101690.0,1.18258123]
[1737098240540,0.049171,101700.0,101690.0,1.60050633]
[1737098241948,0.049171,101700.0,101690.0,1.60050626]
[1737098243845,0.049171,101700.0,101690.0,2.05423195]
[1737098244044,0.3608,101710.0,101690.0,2.05423195]
[1737098244247,0.049166,101710.0,101690.0,2.05423195]
[1737098245142,0.049166,101710.0,101700.0,0.049171]
[1737098245449,0.049166,101710.0,101700.0,0.06146848]
[1737098245650,0.049166,101710.0,101700.0,0.0668526]
[1737098246053,0.049166,101710.0,101700.0,0.15977764]
[1737098246743,0.409963,101720.0,101700.0,0.56974464]
[1737098246948,0.409963,101720.0,101710.0,0.15602569]
[1737098247261,0.049158,101730.0,101710.0,0.24768796]
[1737098247551,0.409953,101740.0,101720.0,0.50288369]
[1737098247745,0.409953,101740.0,101730.0,0.0933]
[1737098249554,0.50287869,101740.0,101730.0,0.0933]
[1737098251750,0.50287869,101740.0,101730.0,0.0312]
[1737098251961,0.049161,101730.0,101710.0,1.08460627]
[1737098252150,0.09292569,101730.0,101710.0,1.10225127]
[1737098252348,0.049161,101720.0,101710.0,1.10225127]
[1737098252758,0.049161,101720.0,101710.0,1.10224957]
[1737098253056,0.049161,101720.0,101710.0,1.51630937]
[1737098253455,0.50288669,101720.0,101710.0,1.14314438]
[1737098253762,0.50288669,101720.0,101710.0,1.12550108]
[1737098254247,0.50288669,101720.0,101710.0,1.13534825]
[1737098255257,0.50288669,101720.0,101710.0,0.07384717]
[1737098260161,0.53398669,101720.0,101710.0,0.07384717]
[1737098261157,0.53398669,101720.0,101710.0,0.04254717]
[1737098261357,0.53398669,101720.0,101710.0,0.00984717]
[1737098261662,0.049166,101710.0,101700.0,0.67964128]
[1737098261863,0.049166,101710.0,101700.0,0.34472314]
[1737098262055,0.049166,101710.0,101700.0,0.34472308]
[1737098262256,0.049166,101710.0,101700.0,0.43764877]
[1737098262464,0.3919,101720.0,101700.0,0.44759571]
[1737098262658,0.409963,101720.0,101710.0,0.15652569]
[1737098262964,0.409963,101720.0,101710.0,0.20569169]
[1737098263869,0.409963,101720.0,101710.0,0.21798799]
[1737098264165,0.409963,101720.0,101710.0,0.13043144]
[1737098267461,0.409963,101720.0,101710.0,0.112766]
[1737098267867,0.409963,101720.0,101710.0,0.21798774]
[1737098268068,0.409963,101720.0,101710.0,0.22336323]
[1737098269071,0.409963,101720.0,101710.0,0.63133343]
[1737098269273,0.409963,101720.0,101710.0,0.9315692]
[1737098269470,0.049163,101720.0,101710.0,0.83864351]
[1737098269870,0.049163,101720.0,101710.0,0.78947751]
[1737098270172,0.50288869,101720.0,101710.0,0.77181475]
[1737098271260,0.50288869,101720.0,101710.0,0.784111]
[1737098271765,0.50288869,101720.0,101710.0,0.07589625]
[1737098272864,0.409963,101720.0,101710.0,0.07589625]
[1737098273168,0.409963,101720.0,101710.0,0.08125734]
[1737098274571,0.409963,101720.0,101710.0,0.08125724]
[1737098274764,0.409963,101720.0,101710.0,0.7896543]
[1737098276570,0.409963,101720.0,101710.0,0.78965415]
[1737098280662,0.50288869,101720.0,101710.0,0.72605415]
[1737098280862,0.53438869,101720.0,101710.0,0.72605415]
[1737098281970,0.53438869,101720.0,101710.0,1.07862637]